bitfinex/quotes_ETHUSD_20240821
["timestamp","ask_amount","ask_price","bid_price","bid_amount"]
[1724282997196,3.79706,2633.7,2633.5,19.44]
[1724282998687,3.79708,2633.6,2633.5,19.44]
[1724283000089,4.19425603,2633.6,2633.5,19.44]
[1724283002885,8.54133603,2633.6,2633.5,19.44]
[1724283003094,9.62546963,2633.6,2633.5,19.44]
[1724283003389,12.08526963,2633.6,2633.5,19.44]
[1724283003595,15.48195719,2633.6,2633.5,19.44]
[1724283005878,3.79812,2632.9,2632.7,19.44]
[1724283006052,0.46202464,2632.8,2632.4,19.44]
[1724283006246,3.7984,2632.7,2632.4,19.44]
[1724283006452,7.59633,2632.9,2632.4,19.44]
[1724283006753,3.79824,2632.8,2632.4,19.44]
[1724283007749,3.79812,2632.9,2632.4,19.44]
[1724283009202,3.79812,2632.9,2632.5,19.44]
[1724283009915,3.79785,2633.1,2632.5,19.44]
[1724283010195,6.894,2633.5,2632.5,19.44]
[1724283010196,3.79769,2633.2,2632.6,6.10281]
[1724283010604,3.0,2633.1,2632.6,6.10281]
[1724283010771,3.0,2633.1,2632.5,21.8725]
[1724283011383,3.0,2633.1,2632.6,19.44]
[1724283011785,3.79806,2633.0,2632.6,19.44]
[1724283012323,3.79806,2633.0,2632.7,19.44]
[1724283014124,3.79805,2633.0,2632.6,19.44]
[1724283014420,7.5961,2633.0,2632.6,19.44]
[1724283015331,3.79805,2633.0,2632.6,19.44]
[1724283015499,0.39710327,2632.9,2632.6,19.44]
[1724283015832,4.19524327,2632.9,2632.6,19.44]
[1724283016384,0.39710327,2632.9,2632.6,19.44]
[1724283017524,0.39710327,2632.9,2632.6,21.9113]
[1724283017729,0.39710327,2632.9,2632.6,23.84155837]
[1724283018094,0.39710327,2632.9,2632.7,19.44]
[1724283019198,0.39710327,2632.9,2632.8,29.51836]
[1724283019731,11.74288,2634.1,2633.5,3.79709]
[1724283020026,11.74288,2634.1,2633.6,19.67079573]
[1724283020027,7.94639,2634.1,2633.6,19.67079573]
[1724283020236,3.79651,2634.0,2633.6,19.67079573]
[1724283020416,3.79651,2634.0,2633.6,19.04289673]
[1724283020623,3.79689,2633.8,2633.6,19.04289673]
[1724283021533,3.79693,2633.7,2633.6,19.04289673]
[1724283023706,3.79658,2634.0,2633.6,19.04289673]
[1724283023902,3.0,2633.9,2633.6,19.04289673]
[1724283024110,3.0,2633.9,2633.7,19.04289673]
[1724283024950,3.79681,2633.8,2633.7,19.04289673]
[1724283035222,4.19391752,2633.8,2633.7,19.04289673]
[1724283053586,7.99072752,2633.8,2633.7,19.04289673]
[1724283057986,4.19391752,2633.8,2633.7,19.04289673]
[1724283066113,7.99070752,2633.8,2633.7,19.04289673]
[1724283066279,4.19389752,2633.8,2633.7,19.04289673]
[1724283068921,9.61268752,2633.8,2633.7,19.04289673]
[1724283069081,12.61268752,2633.8,2633.7,19.04289673]
[1724283070606,16.40947752,2633.8,2633.7,19.04289673]
[1724283070811,3.79766,2633.2,2633.1,19.04289673]
[1724283071018,5.41966,2633.2,2633.1,19.04289673]
[1724283071339,3.79793,2633.1,2632.7,2.4069]
[1724283071549,3.79811,2632.9,2632.7,2.4069]
[1724283071761,3.79811,2632.9,2632.7,21.44979673]
[1724283072260,3.79792,2633.1,2632.7,21.44979673]
[1724283072554,3.79796,2633.0,2632.7,4.55187967]
[1724283072762,3.79791,2633.1,2632.7,4.55187967]
[1724283073536,3.79791,2633.1,2632.7,2.14497967]
[1724283073739,0.3970594,2633.2,2632.8,3.8744]
[1724283073957,0.3970594,2633.2,2632.9,2.97203797]
[1724283074572,0.3970594,2633.2,2633.1,2.4974]
[1724283077608,3.79731,2633.5,2633.3,18.64583733]
[1724283079928,3.79737,2633.4,2633.3,18.64583733]
[1724283080656,3.79731,2633.5,2633.3,18.64583733]
[1724283081729,7.59462,2633.5,2633.3,18.64583733]
[1724283082758,3.79731,2633.5,2633.3,18.64583733]
[1724283083563,3.79731,2633.5,2633.4,18.64583733]
[1724283083765,6.79731,2633.5,2633.4,18.64583733]
[1724283084657,10.59462,2633.5,2633.4,18.64583733]
[1724283085914,17.709435,2633.5,2633.4,18.64583733]
[1724283089246,17.690961,2633.5,2633.4,18.64583733]
[1724283089459,3.7978,2633.1,2633.0,18.64583733]
[1724283089980,7.5956,2633.1,2633.0,18.64583733]
[1724283090309,14.3934,2633.1,2633.0,18.64583733]
[1724283092566,10.5956,2633.1,2633.0,18.64583733]
[1724283105054,3.79769,2633.2,2633.0,21.03303733]
[1724283105353,0.39707354,2633.4,2633.2,2.3872]
[1724283105556,0.39707354,2633.4,2633.3,2.10330373]
[1724283106939,0.39707354,2633.4,2633.3,4.46040373]
[1724283107313,0.39707354,2633.4,2633.3,23.10624106]
[1724283107555,7.59349,2633.9,2633.4,2.3571]
[1724283107734,3.79671,2633.9,2633.5,20.95646144]
[1724283107936,4.19399817,2633.8,2633.5,20.95646144]
[1724283108328,3.79694,2633.7,2633.5,20.95646144]
[1724283110566,7.59398,2633.7,2633.5,18.64583733]
[1724283110766,3.79708,2633.6,2633.5,18.64583733]
[1724283113178,3.79694,2633.7,2633.5,18.64583733]
[1724283115783,0.39709817,2633.8,2633.5,18.64583733]
[1724283115931,0.39709817,2633.8,2633.6,2.10029373]
[1724283117701,0.39709817,2633.8,2633.7,2.3793]
[1724283117860,4.19390817,2633.8,2633.7,2.3793]
[1724283119207,4.19390817,2633.8,2633.7,21.02513733]
[1724283121476,3.79681,2633.8,2633.7,21.02513733]
[1724283124156,3.79672,2633.9,2633.7,21.02513733]
[1724283124502,3.79672,2633.9,2633.7,23.12765106]
[1724283125056,3.79672,2633.9,2633.8,18.64583733]
[1724283125301,7.59315,2634.0,2633.8,18.64583733]
[1724283125506,3.79654,2634.0,2633.8,18.64583733]
[1724283125703,3.79654,2634.0,2633.9,0.86009751]
[1724283129407,4.1935344,2634.2,2634.0,2.4916]
[1724283129711,4.1935344,2634.2,2634.1,18.64583733]
[1724283129873,3.7963,2634.2,2634.1,18.64583733]
[1724283131976,7.5926,2634.2,2634.1,18.64583733]
[1724283132182,8.90977225,2634.2,2634.1,18.64583733]
[1724283132721,7.98831225,2634.2,2634.1,18.64583733]
[1724283133487,8.53831225,2634.2,2634.1,18.64583733]
[1724283136422,7.98831225,2634.2,2634.1,18.64583733]
[1724283144531,7.5926,2634.2,2634.1,18.64583733]
[1724283145141,11.3889,2634.2,2634.1,18.64583733]
[1724283145431,12.33440418,2634.2,2634.1,18.64583733]
[1724283145594,12.73169852,2634.2,2634.1,18.64583733]
[1724283145949,7.5933,2633.9,2633.8,18.64583733]
[1724283146231,9.2153,2633.9,2633.8,18.64583733]
[1724283146400,13.56195,2633.9,2633.8,18.64583733]
[1724283147554,9.7653,2633.9,2633.8,18.64583733]
[1724283149338,12.7653,2633.9,2633.8,18.64583733]
[1724283149543,12.2153,2633.9,2633.8,18.64583733]
[1724283152083,3.0,2633.9,2633.8,18.64583733]
[1724283152221,3.79638,2634.1,2633.8,18.64583733]
[1724283152426,3.79638,2634.1,2633.7,2.3215]
[1724283152427,3.79638,2634.1,2633.9,2.09673373]
[1724283152724,3.79679,2633.8,2633.7,2.3215]
[1724283152962,5.41879,2633.8,2633.7,2.3215]
[1724283155154,3.79667,2633.9,2633.7,2.3215]
[1724283155337,7.59343,2633.9,2633.7,2.3215]
[1724283155537,7.98862816,2633.9,2633.7,2.3215]
[1724283156533,3.79679,2633.8,2633.7,2.3215]
[1724283156732,3.79679,2633.8,2633.7,2.55365]
[1724283157155,3.79715,2633.6,2633.5,2.4103]
[1724283157539,5.41915,2633.6,2633.5,2.4103]
[1724283158886,1.622,2633.6,2633.5,2.4103]
[1724283159472,0.39519816,2633.9,2633.5,2.4103]
[1724283159684,5.41857,2634.0,2633.7,2.4103]
[1724283160082,5.41857,2634.0,2633.6,0.24103]
[1724283160083,5.41879,2633.8,2633.6,0.24103]
[1724283160256,5.41879,2633.8,2633.5,2.4103]
[1724283160765,0.39733766,2633.7,2633.5,2.4103]
[1724283161299,0.30533766,2633.7,2633.5,2.4103]
[1724283164208,5.4188,2633.8,2633.5,2.4103]
[1724283166949,9.2157,2633.8,2633.5,2.4103]
[1724283167979,3.79694,2633.7,2633.5,2.4103]
[1724283169599,3.79737,2633.4,2633.2,2.4648]
[1724283169755,0.96116805,2633.7,2633.2,2.4648]
[1724283169955,5.41923,2633.5,2633.2,2.4648]
[1724283170586,9.21654,2633.5,2633.2,2.4648]
[1724283170858,5.41923,2633.5,2633.2,2.4648]
[1724283172269,1.622,2633.3,2633.2,2.4648]
[1724283173707,3.79774,2633.2,2632.9,2.47]
[1724283173886,5.42007,2633.0,2632.5,2.47]
[1724283176178,1.622,2633.0,2632.5,6.26855]
[1724283176498,1.622,2633.0,2632.7,2.471]
[1724283180069,5.42,2633.0,2632.7,2.471]
[1724283180764,3.79813,2632.9,2632.7,2.471]
[1724283181007,5.42,2633.0,2632.7,2.471]
[1724283182905,9.6137116,2633.0,2632.7,2.471]
[1724283183115,5.8156516,2633.0,2632.7,2.471]
[1724283183804,9.6136916,2633.0,2632.7,2.471]
[1724283184013,3.79812,2632.9,2632.7,2.471]
[1724283184165,3.79855,2632.6,2632.4,2.3734]
[1724283184374,5.42055,2632.6,2632.4,2.3734]
[1724283185085,9.21921,2632.6,2632.4,2.3734]
[1724283185286,7.59762,2632.4,2632.3,0.0283368]
[1724283185524,10.371192,2632.4,2632.3,0.0283368]
[1724283185672,13.371192,2632.4,2632.3,0.0283368]
[1724283185873,17.170002,2632.4,2632.3,0.0283368]
[1724283186073,23.264912,2632.4,2632.3,0.0283368]
[1724283186298,23.264912,2632.4,2631.1,2.3734]
[1724283186299,2.2961,2631.8,2630.5,21.01923733]
[1724283186507,2.2961,2631.8,2630.4,0.01]
[1724283186508,3.80112,2630.8,2630.4,0.01]
[1724283187124,7.60224,2630.8,2630.4,0.01]
[1724283187623,10.60224,2630.8,2630.4,0.01]
[1724283188338,11.15224,2630.8,2630.4,0.01]
[1724283188478,12.303812,2630.8,2630.4,0.01]
[1724283188923,11.753812,2630.8,2630.4,0.01]
[1724283189678,12.303812,2630.8,2630.4,0.01]
[1724283190137,16.104932,2630.8,2630.4,0.01]
[1724283190280,13.65575,2630.5,2630.4,0.01]
[1724283190479,17.55775,2630.5,2630.4,0.01]
[1724283190884,21.10775,2630.5,2630.4,0.01]
[1724283193122,11.4051,2630.4,2630.3,0.005]
[1724283193323,14.9551,2630.4,2630.3,0.005]
[1724283193488,16.106672,2630.4,2630.3,0.005]
[1724283195388,7.60542,2629.7,2629.6,0.1275138]
[1724283195608,7.60542,2629.7,2629.6,18.77335113]
[1724283195609,11.50742,2629.7,2629.6,18.77335113]
[1724283195916,14.90200624,2629.7,2629.6,18.77335113]
[1724283196819,11.00000624,2629.7,2629.6,18.77335113]
[1724283197015,3.80247,2629.9,2629.6,18.77335113]
[1724283197219,3.0,2629.8,2629.6,18.77335113]
[1724283197413,6.80257,2629.8,2629.6,18.77335113]
[1724283198344,7.60542,2629.7,2629.6,0.1275138]
[1724283199934,3.80271,2629.7,2629.6,0.1275138]
[1724283200864,7.60542,2629.7,2629.6,0.1275138]
[1724283201431,8.00288971,2629.7,2629.6,0.1275138]
[1724283201645,4.20017971,2629.7,2629.6,0.1275138]
[1724283202964,0.39746971,2629.7,2629.6,0.1275138]
[1724283206816,8.42289568,2629.7,2629.6,0.1275138]
[1724283207026,8.00288971,2629.7,2629.6,0.1275138]
[1724283208418,8.00288971,2629.7,2629.6,18.77335113]
[1724283209126,4.20017971,2629.7,2629.6,18.77335113]
[1724283210527,0.39746971,2629.7,2629.6,18.77335113]
[1724283211908,4.20017971,2629.7,2629.6,18.77335113]
[1724283212503,0.39746971,2629.7,2629.6,18.77335113]
[1724283213023,0.39746971,2629.7,2629.6,21.26691024]
[1724283215682,0.39746971,2629.7,2629.6,18.77335113]
[1724283217218,0.39746971,2629.7,2629.6,21.02375113]
[1724283218536,4.20017971,2629.7,2629.6,18.77335113]
[1724283218883,0.39746971,2629.7,2629.6,18.77335113]
[1724283219100,0.39746971,2629.7,2629.6,21.26305113]
[1724283221430,3.80259,2629.8,2629.6,21.26305113]
[1724283222026,3.80235,2630.0,2629.6,22.32368759]
[1724283222440,3.80252,2629.9,2629.6,21.26305113]
[1724283223240,3.80252,2629.9,2629.7,18.64583733]
[1724283224039,3.80235,2630.0,2629.7,18.64583733]
[1724283224574,7.60472,2630.0,2629.7,18.64583733]
[1724283224779,3.80235,2630.0,2629.7,18.64583733]
[1724283225093,3.80256,2629.9,2629.7,18.64583733]
[1724283225232,3.80257,2629.8,2629.7,18.64583733]
[1724283226262,3.80235,2630.0,2629.7,18.64583733]
[1724283226475,3.80235,2630.0,2629.7,19.94019508]
[1724283226847,7.60475,2630.0,2629.7,19.94019508]
[1724283227031,7.60475,2630.0,2629.7,18.64583733]
[1724283227387,3.0,2630.4,2629.7,18.64583733]
[1724283227388,3.902,2630.1,2629.7,18.64583733]
[1724283227531,7.60514,2629.8,2629.7,18.64583733]
[1724283228932,3.80257,2629.8,2629.7,18.64583733]
[1724283229681,3.80147576,2629.8,2629.7,18.64583733]
[1724283230949,3.80257,2629.8,2629.7,21.11643733]
[1724283231145,3.80251,2629.9,2629.7,21.11643733]
[1724283231585,0.39743659,2629.8,2629.7,21.11643733]
[1724283233281,0.39743659,2629.8,2629.7,23.24083244]
[1724283236393,0.39743659,2629.8,2629.7,20.77023244]
[1724283236593,0.39743659,2629.8,2629.7,18.64583733]
[1724283236917,4.20000659,2629.8,2629.7,18.64583733]
[1724283237718,0.39743659,2629.8,2629.7,18.64583733]
[1724283238073,4.20000659,2629.8,2629.7,18.64583733]
[1724283238712,8.00257659,2629.8,2629.7,18.64583733]
[1724283239792,4.20000659,2629.8,2629.7,18.64583733]
[1724283242124,8.00257659,2629.8,2629.7,18.64583733]
[1724283242459,8.80283425,2629.8,2629.7,18.64583733]
[1724283243364,7.60542,2629.7,2629.6,0.1275138]
[1724283247162,10.60542,2629.7,2629.6,18.77335113]
[1724283247383,11.35132058,2629.7,2629.6,18.77335113]
[1724283248378,15.70403058,2629.7,2629.6,18.77335113]
[1724283249343,11.35132058,2629.7,2629.6,18.77335113]
[1724283249960,17.48113058,2629.7,2629.6,18.77335113]
[1724283250237,18.42820733,2629.7,2629.6,18.77335113]
[1724283251145,7.60658,2629.3,2629.2,18.367065]
[1724283251474,11.40683766,2629.3,2629.2,18.367065]
[1724283251854,11.80429751,2629.3,2629.2,18.367065]
[1724283252850,18.52318751,2629.3,2629.2,18.367065]
[1724283253381,13.77895,2628.5,2628.4,0.005]
[1724283253581,17.68095,2628.5,2628.4,0.005]
[1724283253878,6.80445,2628.5,2628.4,0.005]
[1724283254251,10.6089,2628.5,2628.4,0.005]
[1724283254453,18.31535,2628.5,2628.4,0.005]
[1724283254641,18.86535,2628.5,2628.4,0.005]
[1724283254981,21.23095,2628.5,2628.4,0.005]
[1724283255196,21.23095,2628.5,2628.4,1e-05]
[1724283255487,25.0354,2628.5,2628.4,1e-05]
[1724283255644,28.83985,2628.5,2628.4,1e-05]
[1724283257045,25.0354,2628.5,2628.4,1e-05]
[1724283257580,21.23095,2628.5,2628.4,1e-05]
[1724283257896,15.0609,2628.5,2628.4,1e-05]
[1724283258063,11.1589,2628.5,2628.4,1e-05]
[1724283258389,7.6089,2628.5,2628.4,1e-05]
[1724283258591,3.80445,2628.5,2628.4,1e-05]
[1724283258801,7.6089,2628.5,2628.4,1e-05]
[1724283260612,10.6089,2628.5,2628.4,1e-05]
[1724283261570,6.80445,2628.5,2628.4,1e-05]
[1724283262113,6.80445,2628.5,2628.4,15.04812312]
[1724283262614,3.0,2628.5,2628.4,15.04812312]
[1724283262915,11.75872,2628.6,2628.4,15.87282069]
[1724283263513,7.95431,2628.6,2628.4,15.87282069]
[1724283263817,3.80409,2628.8,2628.5,15.04811312]
[1724283264012,3.80379,2629.0,2628.5,15.04811312]
[1724283264013,3.80379,2629.0,2628.6,2.2972]
[1724283264307,3.80379,2629.0,2628.6,4.11420207]
[1724283264510,3.80411,2628.8,2628.6,4.11420207]
[1724283265383,7.60824,2628.8,2628.6,4.11420207]
[1724283265693,3.80416,2628.7,2628.6,4.11420207]
[1724283265900,3.80411,2628.8,2628.6,4.11420207]
[1724283266810,3.80378,2629.0,2628.6,4.11420207]
[1724283267172,0.39747216,2628.8,2628.7,1.91623152]
[1724283267875,0.39747216,2628.8,2628.7,16.96434464]
[1724283280548,0.39747216,2628.8,2628.7,19.37144464]
[1724283281060,0.39747216,2628.8,2628.7,23.17560464]
[1724283281556,0.39747216,2628.8,2628.7,19.37144464]
[1724283282000,0.39747216,2628.8,2628.7,17.45521312]
[1724283286099,0.39747216,2628.8,2628.7,15.04811312]
[1724283287081,4.20148216,2628.8,2628.7,15.04811312]
[1724283290481,0.39747216,2628.8,2628.7,17.34131312]
[1724283292433,0.39747216,2628.8,2628.7,15.04811312]
[1724283296018,0.39747216,2628.8,2628.7,23.35774943]
[1724283296730,0.39747216,2628.8,2628.5,15.04811312]
[1724283296885,3.80424,2628.7,2628.5,15.04811312]
[1724283297071,3.8043,2628.6,2628.5,15.04811312]
[1724283297526,0.39747216,2628.8,2628.5,15.04811312]
[1724283297887,0.39747216,2628.8,2628.5,17.54631312]
[1724283298691,0.39747216,2628.8,2628.5,23.48577743]
[1724283299147,0.39747216,2628.8,2628.5,19.68140743]
[1724283299349,0.39747216,2628.8,2628.5,17.54631312]
[1724283300728,0.39747216,2628.8,2628.6,15.04811312]
[1724283301041,4.20151216,2628.8,2628.6,15.04811312]
[1724283301242,0.39747216,2628.8,2628.6,15.04811312]
[1724283302319,3.80416,2628.7,2628.6,15.04811312]
[1724283303486,7.60832,2628.7,2628.6,15.04811312]
[1724283303620,7.6089,2628.5,2628.4,1e-05]
[1724283304299,8.00640484,2628.5,2628.4,1e-05]
[1724283304757,11.81085484,2628.5,2628.4,1e-05]
[1724283304910,14.69825484,2628.5,2628.4,1e-05]
[1724283305115,18.09516798,2628.5,2628.4,1e-05]
[1724283305291,21.89961798,2628.5,2628.4,1e-05]
[1724283306410,18.09516798,2628.5,2628.4,1e-05]
[1724283308159,21.89961798,2628.5,2628.4,1e-05]
[1724283308371,18.09516798,2628.5,2628.4,1e-05]
[1724283310880,25.70406798,2628.5,2628.4,1e-05]
[1724283311026,21.89961798,2628.5,2628.4,1e-05]
[1724283312311,25.70406798,2628.5,2628.4,1e-05]
[1724283313022,11.41638,2627.8,2627.7,0.304575]
[1724283313209,17.43248,2627.8,2627.7,0.304575]
[1724283313411,3.80682,2626.9,2626.5,15.04811312]
[1724283313653,7.58380646,2626.7,2626.6,15.04811312]
[1724283313853,11.94085646,2626.7,2626.6,14.10819614]
[1724283314059,17.40695646,2626.7,2626.6,12.0790019]
[1724283314262,7.61584,2626.1,2626.0,1e-05]
[1724283314469,11.97376,2626.1,2626.0,19.44001]
[1724283314817,6.80792,2626.1,2626.0,19.44001]
[1724283315318,14.97376,2626.1,2626.0,19.44001]
[1724283315541,15.37030963,2626.1,2626.0,19.44001]
[1724283315744,21.67322963,2626.1,2626.0,7.37126721]
[1724283316119,21.67322963,2626.1,2624.9,2.4336]
[1724283316120,3.8096,2625.0,2624.9,2.4336]
[1724283316269,3.80888,2625.5,2624.9,14.25459]
[1724283316470,3.80945,2625.1,2624.9,14.25459]
[1724283316771,3.93,2625.3,2624.9,14.25459]
[1724283316772,7.73913,2625.3,2624.9,14.25459]
[1724283316995,3.0,2625.4,2625.0,3.8095]
[1724283317147,3.80808,2626.0,2625.4,2.3911]
[1724283317486,0.39654963,2626.1,2625.5,0.620009]
[1724283317631,0.39654963,2626.1,2625.6,3.80864]
[1724283317832,3.80764,2626.3,2625.7,2.395]
[1724283318052,3.80753,2626.4,2625.7,2.395]
[1724283318053,3.80778,2626.2,2625.7,2.395]
[1724283318664,3.80793,2626.1,2625.7,2.395]
[1724283318965,3.80778,2626.2,2625.7,2.395]
[1724283319543,0.39774996,2626.1,2625.7,2.395]
[1724283319735,0.39774996,2626.1,2625.7,3.015376]
[1724283320149,0.39774996,2626.1,2625.7,6.823786]
[1724283320348,0.39774996,2626.1,2626.0,2.4769]
[1724283323287,0.39774996,2626.1,2625.6,2.4769]
[1724283323481,4.20568996,2626.1,2625.6,2.4769]
[1724283323833,3.80816,2626.0,2625.6,2.4769]
[1724283324033,3.8085,2625.7,2625.6,2.4769]
[1724283324354,3.80881,2625.5,2625.2,2.4769]
[1724283324557,7.61775,2625.5,2625.2,2.4769]
[1724283324756,3.80881,2625.5,2625.2,2.4769]
[1724283324957,3.80904,2625.4,2625.2,2.4769]
[1724283325298,3.80881,2625.5,2625.2,2.4769]
[1724283325590,3.0,2625.6,2625.2,2.4769]
[1724283325738,3.0,2625.6,2625.2,2.72459]
[1724283325946,6.8084,2625.8,2625.2,2.72459]
[1724283326351,10.61689,2625.8,2625.2,2.72459]
[1724283326551,6.8084,2625.8,2625.2,2.72459]
[1724283326779,10.61688,2625.8,2625.2,2.72459]
[1724283327105,6.8084,2625.8,2625.2,2.72459]
[1724283328883,3.93,2625.9,2625.5,6.12275]
[1724283329082,4.20577996,2626.1,2625.5,6.12275]
[1724283329083,0.39774996,2626.1,2625.7,3.8085]
[1724283329266,0.39774996,2626.1,2625.8,2.314]
[1724283329783,0.39774996,2626.1,2625.8,6.12235]
[1724283329941,0.39774996,2626.1,2625.9,2.4616]
[1724283330141,0.39774996,2626.1,2626.0,6.26967]
[1724283330548,0.39774996,2626.1,2626.0,2.4616]
[1724283331155,0.39774996,2626.1,2626.0,6.26967]
[1724283331761,0.39774996,2626.1,2626.0,2.4616]
[1724283331962,0.47940661,2626.1,2626.0,2.4616]
[1724283332163,0.39774996,2626.1,2626.0,2.4616]
[1724283332497,0.47696662,2626.1,2626.0,2.4616]
[1724283333798,0.47696662,2626.1,2626.0,6.26967]
[1724283333980,0.47696662,2626.1,2626.0,7.3767543]
[1724283334566,0.39774996,2626.1,2626.0,7.3767543]
[1724283335418,0.39774996,2626.1,2626.0,3.5686843]
[1724283335563,0.39774996,2626.1,2626.0,2.4616]
[1724283335766,0.39774996,2626.1,2626.0,6.26967]
[1724283335967,0.47698182,2626.1,2626.0,6.26967]
[1724283336199,0.39774996,2626.1,2626.0,10.07774]
[1724283338137,0.6437,2628.5,2626.5,2.362]
[1724283338270,3.80554,2627.8,2627.2,2.362]
[1724283338472,0.08007428,2627.7,2627.2,2.362]
[1724283338770,3.80523,2628.0,2627.2,2.362]
[1724283339068,0.07976624,2627.6,2627.3,3.80617]
[1724283339274,3.80523,2628.0,2627.5,2.3449]
[1724283341702,3.93,2628.1,2627.5,2.3449]
[1724283341865,3.93,2628.1,2627.7,2.294]
[1724283342066,3.93,2628.1,2627.7,6.0996]
[1724283342313,3.93,2628.1,2627.7,2.294]
[1724283342965,3.93,2628.1,2627.7,6.09959]
[1724283343165,3.93,2628.1,2627.8,3.80546]
[1724283343871,3.93,2628.1,2627.7,2.294]
[1724283344474,3.93,2628.1,2627.7,6.0996]
[1724283344920,3.93,2628.1,2627.6,3.80563]
[1724283344921,3.93,2628.1,2627.9,2.2625]
[1724283345137,0.79438996,2628.4,2627.9,2.2625]
[1724283345772,4.59900996,2628.4,2627.9,2.2625]
[1724283345972,0.79438996,2628.4,2627.9,6.06778]
[1724283346245,0.39771128,2628.4,2627.9,2.2625]
[1724283346822,3.0,2628.7,2628.2,2.3247]
[1724283347132,0.39764844,2628.7,2628.2,2.3247]
[1724283347425,0.39764844,2628.7,2628.2,6.12949]
[1724283347630,0.39764844,2628.7,2628.3,3.80471]
[1724283347782,0.08190211,2628.6,2628.3,3.80471]
[1724283348197,0.08190211,2628.6,2628.3,7.60936]
[1724283348431,0.08190211,2628.6,2628.3,3.80465]
[1724283349283,0.08190211,2628.6,2627.9,9.8147]
[1724283349284,3.80469,2628.4,2627.9,9.8147]
[1724283349642,3.8867042,2628.3,2627.9,9.8147]
[1724283349780,3.8049,2628.2,2627.9,9.8147]
[1724283350191,3.88662727,2628.1,2627.9,2.3247]
[1724283350443,3.88662727,2628.1,2627.3,11.29612]
[1724283350444,3.80518,2628.0,2627.5,2.3247]
[1724283350643,0.08157727,2628.1,2627.5,6.13059]
[1724283350839,0.08142809,2627.9,2627.5,6.13059]
[1724283351042,3.88676526,2628.0,2627.5,2.3247]
[1724283351223,0.08121604,2627.8,2627.5,2.3247]
[1724283351430,0.08126322,2627.9,2627.5,2.3247]
[1724283351739,3.80535,2627.9,2627.5,2.3247]
[1724283351938,0.08126965,2627.8,2627.5,2.3247]
[1724283352155,3.88674965,2627.8,2627.5,2.3247]
[1724283352448,3.88674965,2627.8,2626.9,3.80672]
[1724283352449,3.88674965,2627.8,2627.0,2.3247]
[1724283352591,3.80575,2627.6,2627.0,6.13131]
[1724283352792,0.08126965,2627.8,2627.2,2.3247]
[1724283352992,8.33207974,2628.0,2627.3,3.80614]
[1724283352993,0.08083854,2627.5,2627.3,3.80614]
[1724283353315,0.0807621,2627.4,2627.2,6.131]
[1724283353628,3.0,2627.9,2627.3,3.80616]
[1724283354394,0.08122503,2627.8,2627.3,3.80616]
[1724283354594,0.08122503,2627.8,2627.2,2.3247]
[1724283354930,0.08122503,2627.8,2627.2,6.13099]
[1724283355327,0.08122503,2627.8,2627.3,3.80617]
[1724283356709,3.80568,2627.7,2627.2,2.3247]
[1724283357031,0.08115345,2627.6,2627.2,2.3247]
[1724283357602,3.88693345,2627.6,2627.2,2.3247]
[1724283357805,3.88693345,2627.6,2626.9,6.24616]
[1724283358806,3.80593,2627.5,2626.9,6.24616]
[1724283359130,0.08105783,2627.4,2626.9,6.24616]
[1724283359308,3.0,2627.6,2626.9,6.24616]
[1724283359507,0.08097223,2627.5,2626.9,10.05283]
[1724283360105,0.08097223,2627.5,2626.9,6.24616]
[1724283360302,0.08097223,2627.5,2627.1,3.80646]
[1724283360533,6.80565,2627.7,2627.1,3.80646]
[1724283360729,0.08107425,2627.6,2627.1,3.80646]
[1724283361246,0.08107425,2627.6,2626.9,6.24616]
[1724283361453,0.08107425,2627.6,2627.1,3.80643]
[1724283361650,0.08107425,2627.6,2627.3,2.4395]
[1724283362447,0.39772426,2627.5,2627.4,3.80604]
[1724283362633,0.47839154,2627.5,2627.4,3.80604]
[1724283366389,0.08066728,2627.5,2627.4,9.87768]
[1724283366863,0.39768081,2627.9,2627.7,3.80555]
[1724283367939,0.39768081,2627.9,2627.4,2.2656]
[1724283368140,4.20309081,2627.9,2627.4,2.2656]
[1724283368545,8.00854081,2627.9,2627.4,2.2656]
[1724283368766,4.20309081,2627.9,2627.4,2.2656]
[1724283368977,8.00851081,2627.9,2627.4,2.2656]
[1724283369182,4.20309081,2627.9,2627.4,2.2656]
[1724283369351,0.07806988,2627.8,2627.4,2.2656]
[1724283370202,0.07806988,2627.8,2627.5,3.80585]
[1724283370357,0.07806988,2627.8,2627.7,3.8056]
[1724283371865,0.07806988,2627.8,2627.7,7.6112]
[1724283372073,0.07806988,2627.8,2627.7,9.912]
[1724283372401,3.8042,2628.7,2628.1,2.2731]
[1724283372402,0.99439388,2628.4,2628.1,2.2731]
[1724283372789,0.07368629,2628.3,2628.1,2.2731]
[1724283375995,0.07368629,2628.3,2628.2,3.80488]
[1724283376304,0.07368629,2628.3,2628.2,9.86036]
[1724283376677,0.39751958,2628.8,2628.3,3.80462]
[1724283376911,0.6437,2628.7,2628.3,3.80462]
[1724283377205,0.6437,2628.7,2627.8,2.2706]
[1724283377206,3.80469,2628.4,2627.8,2.2706]
[1724283377403,3.8048,2628.3,2627.8,2.2706]
[1724283377607,3.87898733,2628.3,2627.8,2.2706]
[1724283378268,0.07418733,2628.3,2627.8,6.07602]
[1724283378701,7.60901,2628.5,2627.8,6.07602]
[1724283378910,0.07407134,2628.2,2627.8,6.07602]
[1724283379078,0.39681806,2628.7,2628.0,3.80516]
[1724283379079,4.20108806,2628.7,2628.0,3.80516]
[1724283379286,4.20108806,2628.7,2627.9,3.80518]
[1724283379287,0.07387175,2628.1,2627.9,3.80518]
[1724283379503,6.8044,2628.6,2628.0,3.80517]
[1724283379717,3.0,2628.6,2628.0,3.80517]
[1724283380021,0.39681806,2628.7,2628.3,2.2706]
[1724283380310,0.39751958,2628.8,2628.3,2.2706]
[1724283380508,3.39751958,2628.8,2628.3,2.2706]
[1724283380879,7.20156958,2628.8,2628.3,2.2706]
[1724283381808,3.39751958,2628.8,2628.3,2.2706]
[1724283381968,3.39751958,2628.8,2628.3,6.07534]